fUST/lending_fUST_20251020
["ID","MTS","AMOUNT","RATE_DAILY","PERIOD"]
[391885025,1760952639205,-1000.0,0.00026087,2]
[391885026,1760952639214,-1000.0,0.00026087,2]
[391885027,1760952639224,-505.27175638,0.00026087,2]
[391885028,1760952639234,-1000.0,0.00026087,2]
[391885030,1760952639243,-1000.0,0.00026087,2]
[391885031,1760952639253,-1000.0,0.00026087,2]
[391885032,1760952639263,-1072.23703141,0.00026087,2]
[391885033,1760952639272,-1000.0,0.00026087,2]
[391885034,1760952639282,-1000.0,0.00026087,2]
[391885035,1760952639292,-502.42718868,0.00026087,2]
[391885036,1760952639301,-827.3424488,0.00026087,2]
[391885037,1760952639311,-1000.0,0.00026087,2]
[391885038,1760952639320,-153.16799581,0.00026105,2]
[391885039,1760952639329,-501.4444436,0.00026105,2]
[391885040,1760952639340,-152.79309133,0.00026105,2]
[391885041,1760952639349,-151.61557415,0.00026105,2]
[391885042,1760952639359,-1849.0,0.00026113,3]
[391885044,1760952639368,-500.0,0.00026113,3]
[391885045,1760952639378,-586.0,0.00026113,3]
[391885046,1760952639388,-151.0,0.00026113,3]
[391885048,1760952639398,-500.0,0.00026113,3]
[391885050,1760952639407,-160.0,0.0002612,2]
[391885052,1760952639417,-151.0,0.00026125,2]
[391885054,1760952639426,-151.0,0.00026125,2]
[391885055,1760952639436,-151.0,0.00026125,2]
[391885056,1760952639446,-154.12276168,0.00026125,2]
[391885057,1760952639455,-152.89452512,0.00026125,2]
[391885059,1760952639465,-210.63753227,0.00026125,2]
[391885062,1760952639474,-500.0,0.00026125,2]
[391885064,1760952639484,-500.0,0.00026125,2]
[391885066,1760952639493,-500.0,0.00026125,2]
[391885068,1760952639503,-500.0,0.00026125,2]
[391885070,1760952639513,-500.0,0.00026125,2]
[391885072,1760952639522,-192.86864001,0.0002616,2]
[391885074,1760952639532,-1849.0,0.00026167,3]
[391885076,1760952639542,-500.0,0.00026167,3]
[391885078,1760952639551,-586.0,0.00026167,3]
[391885080,1760952639560,-151.0,0.00026167,3]
[391885082,1760952639570,-500.0,0.00026167,3]
[391885084,1760952639579,-199.50400688,0.00026179,2]
[391885086,1760952639588,-199.88629968,0.00026179,2]
[391885088,1760952639598,-152.27320854,0.00026179,2]
[391885090,1760952639607,-500.0,0.00026179,2]
[391885092,1760952639617,-500.0,0.00026179,2]
[391885094,1760952639627,-500.0,0.00026179,2]
[391885096,1760952639636,-500.0,0.00026179,2]
[391885098,1760952639646,-500.0,0.00026179,2]
[391885100,1760952639655,-432.8222691,0.00026188,2]
[391885102,1760952639665,-386.0,0.0002619,2]
[391885104,1760952639674,-27692.98,0.000262,7]
[391885106,1760952639684,-1849.0,0.00026222,3]
[391885108,1760952639693,-500.0,0.00026222,3]
[391885110,1760952639702,-586.0,0.00026222,3]
[391885112,1760952639712,-190.26783446,0.00026222,3]
[391885114,1760952639720,-349.85739787,0.00026222,3]
[391885116,1760952639730,-153.71087954,0.00026234,2]
[391885118,1760952639739,-455.51114859,0.00026234,2]
[391885120,1760952639749,-500.0,0.00026234,2]
[391885122,1760952639758,-500.0,0.00026234,2]
[391885124,1760952639767,-500.0,0.00026234,2]
[391885126,1760952639776,-1849.0,0.00026277,3]
[391885128,1760952639786,-314.6905873,0.00026277,3]
[391885130,1760952639795,-586.0,0.00026277,3]
[391885132,1760952639804,-500.0,0.00026289,2]
[391885134,1760952639814,-500.0,0.00026289,2]
[391885136,1760952639824,-500.0,0.00026289,2]
[391885138,1760952639834,-199.0,0.00026301,11]
[391885140,1760952639843,-500.0,0.00026322,2]
[391885142,1760952639852,-1849.0,0.00026332,3]
[391885144,1760952639862,-586.0,0.00026332,3]
[391885146,1760952639872,-420.0,0.00026343,2]
[391885148,1760952639882,-203.0,0.00026343,2]
[391885150,1760952639891,-500.0,0.00026344,2]
[391885152,1760952639901,-500.0,0.00026344,2]
[391885154,1760952639911,-500.0,0.00026344,2]
[391885156,1760952639920,-193.46795539,0.00026368,2]
[391885158,1760952639929,-352.91239199,0.00026368,2]
[391885160,1760952639939,-27604.2076489,0.00026369,2]
[391885162,1760952639948,-1849.0,0.00026387,3]
[391885164,1760952639958,-586.0,0.00026387,3]
[391885166,1760952639968,-165.85092125,0.00026399,2]
[391885168,1760952639977,-500.0,0.00026399,2]
[391885180,1760952640089,-500.0,0.00026399,2]
[391885183,1760952640099,-1849.0,0.00026441,3]
[391885185,1760952640110,-586.0,0.00026441,3]
[391885186,1760952640119,-500.0,0.00026453,2]
[391885189,1760952640129,-500.0,0.00026453,2]
[391885191,1760952640139,-1680.0,0.00026463,2]
[391885192,1760952640148,-396.69610932,0.00026488,2]
[391885194,1760952640158,-1849.0,0.00026496,3]
[391885197,1760952640167,-586.0,0.00026496,3]
[391885199,1760952640176,-463.71064386,0.00026508,2]
[391885201,1760952640186,-188.94389033,0.00026508,2]
[391885203,1760952640195,-1849.0,0.00026551,3]
[391885205,1760952640204,-586.0,0.00026551,3]
[391885206,1760952640213,-161.57387509,0.00026564,5]
[391885208,1760952640222,-418.15123421,0.00026571,2]
[391885210,1760952640235,-199.0,0.00026575,12]
[391885213,1760952640245,-500.0,0.00026596,2]
[391885214,1760952640254,-1849.0,0.00026606,3]
[391885217,1760952640263,-586.0,0.00026606,3]
[391885219,1760952640273,-1500.0,0.00026635,2]
[391885221,1760952640283,-1500.0,0.00026635,2]
[391885223,1760952640292,-761.40251625,0.00026635,2]
[391885225,1760952640302,-1500.0,0.00026635,2]
[391885227,1760952640313,-1500.0,0.00026635,2]
[391885228,1760952640323,-1500.0,0.00026635,2]
[391885231,1760952640333,-1500.0,0.00026635,2]
[391885233,1760952640342,-1500.0,0.00026635,2]
[391885235,1760952640352,-500.0,0.00026637,5]
[391885237,1760952640362,-1680.0,0.00026649,2]
[391885239,1760952640371,-1849.0,0.00026661,3]
[391885241,1760952640380,-586.0,0.00026661,3]
[391885243,1760952640390,-260.0,0.00026668,2]
[391885245,1760952640399,-956.70807,0.00026676,2]
[391885247,1760952640408,-1849.0,0.00026715,3]
[391885249,1760952640417,-586.0,0.00026715,3]
[391885251,1760952640426,-1849.0,0.0002677,3]
[391885253,1760952640435,-586.0,0.0002677,3]
[391885255,1760952640444,-1031.92,0.00026791,2]
[391885257,1760952640453,-1849.0,0.00026825,3]
[391885259,1760952640462,-586.0,0.00026825,3]
[391885260,1760952640471,-199.0,0.00026849,13]
[391885263,1760952640480,-500.0,0.0002687,2]
[391885264,1760952640490,-1849.0,0.0002688,3]
[391885266,1760952640499,-586.0,0.0002688,3]
[391885268,1760952640508,-1702.33923162,0.00026883,2]
[391885270,1760952640517,-221.939434,0.000269,20]
[391885272,1760952640526,-213.212887,0.000269,20]
[391885274,1760952640536,-500.0,0.00026911,5]
[391885276,1760952640545,-1849.0,0.00026935,3]
[391885278,1760952640554,-586.0,0.00026935,3]
[391885280,1760952640563,-1849.0,0.00026989,3]
[391885282,1760952640572,-586.0,0.00026989,3]
[391885284,1760952640582,-100000.0,0.0002699,2]
[391885286,1760952640591,-7045.5,0.00027,2]
[391885288,1760952640599,-1849.0,0.00027044,3]
[391885290,1760952640609,-586.0,0.00027044,3]
[391885292,1760952640618,-27604.2076489,0.00027081,2]
[391885294,1760952640628,-1849.0,0.00027099,3]
[391885296,1760952640637,-586.0,0.00027099,3]
[391885298,1760952640646,-500.0,0.00027144,2]
[391885300,1760952640656,-1849.0,0.00027154,3]
[391885302,1760952640664,-586.0,0.00027154,3]
[391885304,1760952640674,-2000.0,0.00027183,2]
[391885306,1760952640683,-2000.0,0.00027183,2]
[391885308,1760952640692,-503.93912564,0.00027183,2]
[391885310,1760952640701,-522.05539574,0.00027183,2]
[391885312,1760952640710,-2000.0,0.00027183,2]
[391885314,1760952640719,-2000.0,0.00027183,2]
[391885316,1760952640728,-500.0,0.00027185,5]
[391885318,1760952640737,-1849.0,0.00027208,3]
[391885320,1760952640746,-586.0,0.00027208,3]
[391885322,1760952640755,-779.08008438,0.00027213,2]
[391885324,1760952640764,-360.0,0.00027216,2]
[391885326,1760952640773,-157.22,0.00027245,3]
[391885328,1760952640782,-471.68,0.00027245,3]
[391885330,1760952640791,-160.05607692,0.00027256,2]
[391885332,1760952640800,-158.10768188,0.00027256,2]
[391885334,1760952640810,-158.45552761,0.00027256,2]
[391885336,1760952640818,-500.0,0.00027256,2]
[391885338,1760952640827,-160.05671649,0.00027256,2]
[391885340,1760952640836,-500.0,0.00027256,2]
[391885342,1760952640845,-160.09153937,0.00027256,2]
[391885344,1760952640854,-158.45551666,0.00027256,2]
[391885346,1760952640864,-511.79615359,0.00027256,2]
[391885348,1760952640873,-500.0,0.00027256,2]
[391885350,1760952640883,-501.80162162,0.00027256,2]
[391885352,1760952640892,-160.05670856,0.00027256,2]
[391885355,1760952640904,-160.05607709,0.00027256,2]
[391885358,1760952640924,-158.05537951,0.00027256,2]
[391885360,1760952640937,-168.05889343,0.00027256,2]
[391885363,1760952640953,-160.05671649,0.00027256,2]
[391885366,1760952640970,-1862.55018946,0.00027263,3]
[391885369,1760952640987,-586.0,0.00027263,3]
[391885371,1760952640999,-314.44,0.00027298,3]
[391885374,1760952641014,-27692.98,0.000273,7]
[391885377,1760952641031,-504.3359731,0.00027331,4]
[391885379,1760952641048,-290.24432099,0.00027336,2]
[391885382,1760952641065,-198.6552585,0.0002739,2]
[391885385,1760952641081,-150.0,0.0002739,2]
[391885387,1760952641096,-500.0,0.00027418,2]
[391885390,1760952641111,-500.0,0.00027459,15]
[391885393,1760952641127,-500.0,0.00027473,5]
[391885395,1760952641140,-500.0,0.00027473,2]
[391885398,1760952641153,-500.0,0.00027473,5]
[391885401,1760952641170,-500.0,0.00027473,5]
[391885403,1760952641181,-500.0,0.00027473,5]
[391885405,1760952641194,-500.0,0.00027473,5]
[391885408,1760952641207,-500.0,0.00027473,5]
[391885410,1760952641219,-158.05538179,0.00027473,2]
[391885411,1760952641232,-158.05600447,0.00027473,5]
[391885412,1760952641244,-298.81391684,0.00027473,5]
[391885413,1760952641258,-500.0,0.00027473,5]
[391885414,1760952641271,-500.0,0.00027473,5]
[391885415,1760952641287,-236.0836443,0.00027473,5]
[391885416,1760952641299,-159.74690699,0.00027473,5]
[391885417,1760952641312,-500.0,0.00027473,5]
[391885418,1760952641326,-500.0,0.00027473,5]
[391885419,1760952641339,-500.0,0.00027473,5]
[391885421,1760952641352,-500.0,0.00027473,5]
[391885424,1760952641365,-500.0,0.00027473,5]
[391885426,1760952641378,-500.0,0.00027473,5]
[391885428,1760952641391,-500.37546093,0.00027473,5]
[391885429,1760952641404,-500.0,0.00027473,5]
[391885430,1760952641416,-158.45552194,0.00027473,2]
[391885431,1760952641429,-158.45662825,0.00027473,5]
[391885432,1760952641443,-166.64301674,0.00027473,5]
[391885433,1760952641455,-158.45613788,0.00027473,5]
[391885434,1760952641468,-500.0,0.00027473,4]
[391885435,1760952641481,-500.0,0.00027473,5]
[391885436,1760952641495,-160.84364688,0.00027473,5]
[391885437,1760952641508,-500.0,0.00027473,5]
[391885438,1760952641521,-500.0,0.00027473,5]
[391885439,1760952641534,-500.0,0.00027473,5]
[391885440,1760952641548,-500.55189028,0.00027473,5]
[391885441,1760952641561,-258.50824601,0.00027473,5]
[391885442,1760952641575,-500.0,0.00027473,5]
[391885443,1760952641588,-503.87501821,0.00027473,5]
[391885444,1760952641601,-27604.2076489,0.0002749,2]
[391885445,1760952641614,-499.77,0.0002749,3]
[391885446,1760952641628,-770.2349919,0.00027495,2]
[391885447,1760952641640,-1000.0,0.000275,2]
[391885448,1760952641653,-1000.0,0.000275,2]
[391885449,1760952641666,-1000.0,0.000275,2]
[391885450,1760952641681,-1000.0,0.000275,2]
[391885451,1760952641695,-1000.0,0.000275,2]
[391885452,1760952641707,-1000.0,0.000275,2]
[391885453,1760952641720,-1000.0,0.000275,2]
[391885454,1760952641733,-2620.28617563,0.000275,2]
[391885455,1760952641747,-628.87,0.00027514,3]
[391885456,1760952641759,-1257.75,0.00027527,3]
[391885457,1760952641773,-35714.32,0.000276,3]
[391885458,1760952641786,-252.52693044,0.00027633,2]
[391885459,1760952641800,-311.0,0.0002768,2]
[391885460,1760952641813,-500.0,0.00027692,2]
[391885461,1760952641827,-2659.9050494,0.0002771,2]
[391885462,1760952641841,-2500.0,0.00027731,5]
[391885465,1760952641854,-2500.0,0.00027731,5]
[391885467,1760952641867,-2500.0,0.00027731,5]
[391885469,1760952641880,-2500.0,0.00027731,5]
[391885472,1760952641893,-500.0,0.00027733,15]
[391885474,1760952641906,-1160.91,0.00027748,2]
[391885477,1760952641919,-460.0,0.00027764,2]
[391885479,1760952641932,-500.0,0.0002777,5]
[391885482,1760952641946,-616.45346026,0.00027804,5]
[391885484,1760952641959,-1000.0,0.00027804,5]
[391885486,1760952641968,-1000.0,0.00027804,5]
[391885488,1760952641977,-221.939434,0.00027808,20]
[391885490,1760952641986,-213.212887,0.00027808,20]
[391885492,1760952641996,-172.269,0.00027935,18]
[391885493,1760952642005,-500.0,0.00027966,2]
[391885494,1760952642014,-27604.2076489,0.0002799,2]
[391885495,1760952642024,-15188.06332311,0.00028,2]
[391885505,1760952642226,-10338.71524354,0.00028,5]
[391885506,1760952642251,-11112.37797043,0.00028,4]
[391885507,1760952642267,-787.55736928,0.00028,2]
[391885508,1760952642277,-500.0,0.00028007,15]
[391885509,1760952642286,-490.62025387,0.00028021,5]
[391885510,1760952642296,-1000.0,0.00028021,2]
[391885511,1760952642307,-1000.0,0.00028021,5]
[391885512,1760952642316,-1000.0,0.00028021,5]
[391885513,1760952642325,-1120.1437084,0.00028021,5]
[391885514,1760952642335,-1000.0,0.00028021,5]
[391885515,1760952642343,-174.55050883,0.00028021,5]
[391885516,1760952642354,-529.66142112,0.00028021,5]
[391885517,1760952642363,-507.73015531,0.00028021,5]
[391885518,1760952642373,-969.37199468,0.00028021,5]
[391885519,1760952642383,-410.62875183,0.00028021,5]
[391885520,1760952642392,-1000.0,0.00028021,5]
[391885521,1760952642400,-1000.0,0.00028021,5]
[391885522,1760952642410,-514.52470429,0.00028021,5]
[391885523,1760952642419,-1113.17871453,0.00028021,5]
[391885524,1760952642428,-1000.0,0.00028021,5]
[391885525,1760952642437,-1000.0,0.00028021,4]
[391885526,1760952642447,-1000.0,0.00028021,5]
[391885527,1760952642455,-1000.0,0.00028021,5]
[391885528,1760952642465,-506.86946724,0.00028021,5]
[391885529,1760952642474,-1000.0,0.00028021,5]
[391885530,1760952642483,-320.58791878,0.00028021,5]
[391885531,1760952642492,-291.24050531,0.00028027,27]
[391885532,1760952642501,-677.2948286,0.00028056,2]
[391885533,1760952642511,-252.5269304,0.0002808,2]
[391885534,1760952642520,-1385.03126112,0.0002824,2]
[391885536,1760952642529,-548.81049135,0.0002824,2]
[391885537,1760952642538,-2523.82627988,0.00028279,5]
[391885538,1760952642548,-3000.0,0.00028279,5]
[391885539,1760952642558,-3000.0,0.00028279,5]
[391885540,1760952642567,-3000.0,0.00028279,5]
[391885541,1760952642576,-500.0,0.00028281,15]
[391885542,1760952642586,-35714.28,0.000283,4]
[391885543,1760952642595,-560.0,0.00028312,2]
[391885544,1760952642603,-1515.02448864,0.00028351,5]
[391885545,1760952642612,-1500.0,0.00028351,5]
[391885546,1760952642622,-152.75385122,0.00028473,5]
[391885547,1760952642631,-150.0,0.00028473,5]
[391885548,1760952642641,-161.82696326,0.00028473,5]
[391885549,1760952642651,-150.0,0.00028473,5]
[391885550,1760952642660,-151.0,0.000285,15]
[391885551,1760952642673,-137261.35951211,0.000285,7]
[391885552,1760952642688,-27692.98,0.000285,7]
[391885553,1760952642704,-331.70779542,0.00028508,2]
[391885554,1760952642713,-252.5269304,0.00028527,2]
[391885555,1760952642723,-3830.26327114,0.00028536,2]
[391885556,1760952642733,-27604.2076489,0.00028548,2]
[391885557,1760952642742,-500.0,0.00028555,15]
[391885559,1760952642751,-587.0,0.00028559,2]
[391885561,1760952642760,-542.87348369,0.00028568,2]
[391885563,1760952642770,-1570.82366199,0.00028568,5]
[391885565,1760952642779,-191.76914439,0.00028568,5]
[391885568,1760952642789,-1500.0,0.00028568,5]
[391885569,1760952642798,-152.73868571,0.00028568,5]
[391885571,1760952642807,-1500.0,0.00028568,5]
[391885573,1760952642816,-1500.0,0.00028568,5]
[391885575,1760952642826,-1500.0,0.00028568,4]
[391885577,1760952642836,-433.28505328,0.00028568,5]
[391885579,1760952642845,-1293.16431153,0.00028568,5]
[391885581,1760952642854,-179.84697018,0.00028568,5]
[391885583,1760952642863,-314.44,0.00028615,3]
[391885585,1760952642873,-628.88,0.00028668,3]
[391885587,1760952642882,-1289.9,0.00028705,2]
[391885589,1760952642891,-221.939434,0.00028717,20]
[391885591,1760952642900,-213.212887,0.00028717,20]
[391885593,1760952642911,-989.12601571,0.0002876,2]
[391885595,1760952642920,-4000.0,0.0002876,5]
[391885597,1760952642929,-2318.4149331,0.0002876,2]
[391885599,1760952642939,-250.31971598,0.0002876,2]
[391885601,1760952642948,-169.83253239,0.000288,7]
[391885603,1760952642957,-2351.0,0.0002882,2]
[391885605,1760952642967,-3500.0,0.00028827,5]
[391885607,1760952642976,-3500.0,0.00028827,5]
[391885609,1760952642986,-533.36642872,0.00028827,5]
[391885611,1760952642995,-500.0,0.00028829,15]
[391885613,1760952643004,-999.54,0.0002886,3]
[391885615,1760952643014,-660.0,0.0002886,2]
[391885617,1760952643023,-314.0,0.00028882,2]
[391885619,1760952643032,-402.9601108,0.00028884,2]
[391885621,1760952643040,-1257.74,0.00028884,3]
[391885623,1760952643049,-160.0,0.00028884,2]
[391885625,1760952643058,-2515.5,0.00028897,3]
[391885627,1760952643067,-2000.0,0.00028899,5]
[391885629,1760952643076,-252.5269304,0.00028974,2]
[391885631,1760952643085,-55208.4152978,0.0002898,2]
[391885633,1760952643095,-1308.00759742,0.00029,7]
[391885635,1760952643104,-881.98862225,0.00029,2]
[391885637,1760952643113,-502.44369659,0.00029,7]
[391885639,1760952643123,-250.0,0.00029021,5]
[391885641,1760952643132,-250.0,0.00029021,5]
[391885643,1760952643141,-27604.2076489,0.0002908,2]
[391885645,1760952643151,-399.7,0.000291,7]
[391885647,1760952643159,-500.0,0.00029103,15]
[391885649,1760952643169,-1995.94699985,0.00029116,5]
[391885651,1760952643178,-2000.0,0.00029116,5]
[391885652,1760952643188,-2000.0,0.00029116,5]
[391885653,1760952643197,-1109.11543677,0.00029116,4]
[391885655,1760952643206,-2164.1113455,0.00029265,2]
[391885656,1760952643215,-150.0,0.00029273,5]
[391885657,1760952643224,-5213.41389683,0.00029362,2]
[391885658,1760952643233,-27604.2076489,0.00029367,2]
[391885659,1760952643242,-500.0,0.00029373,5]
[391885660,1760952643252,-500.0,0.00029373,5]
[391885661,1760952643261,-500.0,0.00029373,5]
[391885662,1760952643270,-500.0,0.00029373,5]
[391885663,1760952643279,-500.0,0.00029373,5]
[391885664,1760952643288,-500.0,0.00029373,5]
[391885665,1760952643298,-502.53411817,0.00029373,5]
[391885666,1760952643307,-1897.68027159,0.00029375,5]
[391885667,1760952643316,-4000.0,0.00029375,5]
[391885668,1760952643325,-543.5,0.00029377,15]
[391885669,1760952643334,-5000.0,0.00029393,2]
[391885670,1760952643344,-41625.37641705,0.00029408,3]
[391885671,1760952643353,-760.0,0.00029408,2]
[391885672,1760952643362,-160.0,0.00029413,2]
[391885673,1760952643371,-252.5269304,0.00029421,2]
[391885674,1760952643381,-1515.50384054,0.00029447,5]
[391885675,1760952643390,-221.939434,0.0002947,2]
[391885676,1760952643399,-213.212887,0.0002947,2]
[391885677,1760952643408,-500.43933155,0.00029498,2]
[391885678,1760952643417,-370000.0,0.00029508,2]
[391885679,1760952643426,-157.67836206,0.00029526,2]
[391885680,1760952643435,-71589.98523032,0.0002956,2]
[391885681,1760952643444,-350.0,0.00029568,5]
[391885682,1760952643453,-350.0,0.00029568,5]
[391885683,1760952643463,-4130.47,0.000296,2]
[391885684,1760952643472,-27692.98,0.000296,7]
[391885685,1760952643481,-221.939434,0.00029626,20]
[391885686,1760952643491,-213.212887,0.00029626,20]
[391885687,1760952643499,-154.170284,0.00029626,20]
[391885688,1760952643513,-2080.35362883,0.00029664,5]
[391885689,1760952643522,-2500.0,0.00029664,5]
[391885690,1760952643531,-518.29343034,0.00029681,2]
[391885691,1760952643539,-300.0,0.00029821,5]
[391885692,1760952643549,-433.48337635,0.00029921,5]
[391885693,1760952643558,-1000.0,0.00029921,5]
[391885694,1760952643567,-1013.90856149,0.00029921,5]
[391885695,1760952643576,-1000.0,0.00029921,5]
[391885696,1760952643585,-1000.0,0.00029921,5]
[391885697,1760952643594,-1000.0,0.00029921,5]
[391885698,1760952643603,-4500.0,0.00029923,5]
[391885699,1760952643612,-11190.75002488,0.00029943,2]
[391885700,1760952643624,-1000.0,0.00029943,2]
[391885701,1760952643634,-1000.0,0.00029943,2]
[391885702,1760952643643,-1000.0,0.00029943,2]
[391885703,1760952643652,-1000.0,0.00029943,2]
[391885704,1760952643662,-1000.0,0.00029943,2]
[391885705,1760952643671,-1000.0,0.00029943,2]
[391885706,1760952643681,-151.0,0.00029943,2]
[391885707,1760952643691,-1000.0,0.00029943,2]
[391885708,1760952643700,-500.0,0.00029943,2]
[391885709,1760952643709,-151.0,0.00029943,2]
[391885710,1760952643719,-1000.0,0.00029943,2]
[391885711,1760952643728,-500.0,0.00029943,2]
[391885712,1760952643738,-151.0,0.00029943,2]
[391885713,1760952643748,-500.0,0.00029943,2]
[391885714,1760952643757,-1000.0,0.00029943,2]
[391885715,1760952643767,-187.78006525,0.00029943,2]
[391885716,1760952643776,-151.0,0.00029943,2]
[391885717,1760952643785,-500.0,0.00029943,2]
[391885718,1760952643795,-1000.0,0.00029943,2]
[391885719,1760952643804,-151.0,0.00029943,2]
[391885720,1760952643814,-514.84070869,0.00029943,2]
[391885721,1760952643824,-1000.0,0.00029943,2]
[391885722,1760952643834,-500.0,0.00029943,2]
[391885723,1760952643843,-290.08453086,0.00029943,2]
[391885724,1760952643853,-1000.0,0.00029943,2]
[391885725,1760952643862,-500.0,0.00029943,2]
[391885726,1760952643872,-1000.0,0.00029943,2]
[391885727,1760952643883,-500.0,0.00029943,2]
[391885728,1760952643892,-1000.0,0.00029943,2]
[391885729,1760952643902,-500.0,0.00029943,2]
[391885730,1760952643912,-500.0,0.00029943,2]
[391885731,1760952643921,-1000.0,0.00029943,2]
[391885732,1760952643930,-500.0,0.00029943,2]
[391885733,1760952643939,-500.0,0.00029943,2]
[391885734,1760952643950,-1000.0,0.00029943,2]
[391885735,1760952643959,-500.0,0.00029943,2]
[391885736,1760952643968,-1000.0,0.00029943,2]
[391885737,1760952643978,-500.0,0.00029943,2]
[391885738,1760952643988,-1000.0,0.00029943,2]
[391885739,1760952644002,-157.75103136,0.00029943,2]
[391885740,1760952644019,-151.0,0.00029943,2]
[391885741,1760952644029,-1000.0,0.00029943,2]
[391885742,1760952644039,-151.0,0.00029943,2]
[391885743,1760952644049,-1000.0,0.00029943,2]
[391885744,1760952644058,-151.0,0.00029943,2]
[391885745,1760952644067,-151.0,0.00029943,2]
[391885746,1760952644077,-172.59258262,0.00029943,2]
[391885747,1760952644086,-250.0,0.00029943,2]
[391885748,1760952644096,-250.0,0.00029943,2]
[391885749,1760952644105,-250.0,0.00029943,2]
[391885750,1760952644115,-250.0,0.00029943,2]
[391885751,1760952644123,-250.0,0.00029943,2]
[391885752,1760952644133,-250.0,0.00029943,2]
[391885753,1760952644143,-250.0,0.00029943,2]
[391885754,1760952644153,-250.0,0.00029943,2]
[391885755,1760952644162,-250.0,0.00029943,2]
[391885756,1760952644171,-250.0,0.00029943,2]
[391885757,1760952644180,-250.0,0.00029943,2]
[391885758,1760952644190,-250.0,0.00029943,2]
[391885759,1760952644199,-250.0,0.00029943,2]
[391885760,1760952644208,-250.0,0.00029943,2]
[391885761,1760952644218,-250.0,0.00029943,2]
[391885762,1760952644230,-250.0,0.00029943,2]
[391885763,1760952644239,-250.0,0.00029943,2]
[391885764,1760952644248,-250.0,0.00029943,2]
[391885765,1760952644258,-250.0,0.00029943,2]
[391885766,1760952644267,-250.0,0.00029943,2]
[391885767,1760952644278,-250.0,0.00029943,2]
[391885768,1760952644287,-250.0,0.00029943,2]
[391885769,1760952644296,-250.0,0.00029943,2]
[391885770,1760952644306,-250.0,0.00029943,2]
[391885771,1760952644316,-250.0,0.00029943,2]
[391885772,1760952644325,-250.0,0.00029943,2]
[391885773,1760952644334,-860.0,0.00029956,2]
[391885774,1760952644344,-183.96525,0.0003,2]
[391885775,1760952644353,-221.939434,0.0003,15]
[391885776,1760952644362,-213.212887,0.0003,15]
[391885777,1760952644372,-1292.77429664,0.0003,2]
[391885778,1760952644381,-7293.09724818,0.0003,2]
[391885779,1760952644391,-27601.60965041,0.0003,3]
[391885780,1760952644400,-3425.67918834,0.0003,2]
[391885781,1760952644409,-1189.0,0.0003,45]
[391885782,1760952644418,-525.67314963,0.0003,2]
[391885783,1760952644428,-785.81490251,0.0003,60]
[391885784,1760952644437,-294.23482915,0.0003,60]
[391885785,1760952644446,-200.31104838,0.0003,2]
[391885786,1760952644456,-8051.06919745,0.0003,2]
[391885787,1760952644465,-1001.2839673,0.0003,14]
[391885788,1760952644475,-1000.0,0.0003,4]
[391885789,1760952644484,-151.0,0.0003,14]
[391885790,1760952644493,-200.96,0.000301,7]
[391885791,1760952644503,-339.82742202,0.00030116,5]
[391885792,1760952644512,-450.0,0.00030116,5]
[391885793,1760952644522,-381.86975226,0.0003012,7]
[391885794,1760952644531,-285.59600149,0.0003013,2]
[391885795,1760952644540,-1000.0,0.00030136,14]
[391885796,1760952644550,-1804.10192185,0.00030212,5]
[391885797,1760952644559,-500.0,0.00030273,120]
[391885798,1760952644569,-3116.32033751,0.00030291,2]
[391885799,1760952644578,-179.76630381,0.00030344,5]